fUST/lending_fUST_20260228
["ID","MTS","AMOUNT","RATE_DAILY","PERIOD"]
[406908911,1772270884980,-160.723517,0.00040303,120]
[406908912,1772270885004,-160.723517,0.00040303,120]
[406908913,1772270885030,-160.723517,0.00040303,120]
[406908914,1772270885057,-160.723517,0.00040303,120]
[406908915,1772270885084,-160.723521,0.00040303,120]
[406908916,1772270885112,-268.04702,0.00040303,120]
[406908917,1772270885139,-268.04702,0.00040303,120]
[406908918,1772270885165,-268.04702,0.00040303,120]
[406908919,1772270885191,-268.04702,0.00040303,120]
[406908920,1772270885217,-268.04702,0.00040303,120]
[406908921,1772270885243,-268.04702,0.00040303,120]
[406908922,1772270885270,-268.04702,0.00040303,120]
[406908923,1772270885295,-268.04702,0.00040303,120]
[406908924,1772270885323,-268.04702,0.00040303,120]
[406908925,1772270885349,-268.04702,0.00040303,120]
[406908926,1772270885377,-268.04702,0.00040303,120]
[406908927,1772270885404,-268.04702,0.00040303,120]
[406908928,1772270885432,-268.04702,0.00040303,120]
[406908929,1772270885459,-268.04702,0.00040303,120]
[406908930,1772270885487,-268.04702,0.00040303,120]
[406908931,1772270885513,-268.04702,0.00040303,120]
[406908932,1772270885541,-268.04702,0.00040303,120]
[406908933,1772270885568,-268.04702,0.00040303,120]
[406908934,1772270885594,-268.04702,0.00040303,120]
[406908935,1772270885621,-268.04702,0.00040303,120]
[406908936,1772270885647,-536.92832,0.00040303,120]
[406908937,1772270885674,-536.92832,0.00040303,120]
[406908938,1772270885700,-536.92832,0.00040303,120]
[406908939,1772270885725,-536.92832,0.00040303,120]
[406908940,1772270885751,-536.92832,0.00040303,120]
[406908941,1772270886013,-536.92832,0.00040303,120]
[406908942,1772270886054,-536.92832,0.00040303,120]
[406908943,1772270886083,-536.92832,0.00040303,120]
[406908944,1772270886111,-536.92832,0.00040303,120]
[406908945,1772270886137,-536.92832,0.00040303,120]
[406908946,1772270886163,-536.92832,0.00040303,120]
[406908947,1772270886189,-536.92832,0.00040303,120]
[406908948,1772270886215,-536.92832,0.00040303,120]
[406908949,1772270886243,-536.92832,0.00040303,120]
[406908950,1772270886269,-536.92832,0.00040303,120]
[406908951,1772270886295,-536.92832,0.00040303,120]
[406908952,1772270886320,-536.92832,0.00040303,120]
[406908953,1772270886347,-536.92832,0.00040303,120]
[406908954,1772270886372,-536.92832,0.00040303,120]
[406908955,1772270886398,-536.928317,0.00040303,120]
[406908956,1772270886952,34980.65521791,0.00040304,30]
[406908957,1772270904605,-1209.5725,0.00019339,30]
[406908958,1772270904634,-198.0,0.0001938,120]
[406908959,1772270904678,-323.2140833,0.00020339,48]
[406908960,1772270904704,-177.0,0.0002039,120]
[406908961,1772270904729,-400.0,0.0002039,30]
[406908962,1772270904757,-314.0,0.0002039,30]
[406908963,1772270904785,-125.0,0.000204,120]
[406908964,1772270904811,-167.0,0.000204,120]
[406908965,1772270904834,-296.51163071,0.0002045,30]
[406908966,1772270904858,-374.0,0.00020515,30]
[406908967,1772270904882,-319.0,0.00020535,30]
[406908968,1772270904908,-334.04164818,0.0002072,48]
[406908969,1772270904936,-347.0,0.00021082,30]
[406908970,1772270904966,-177.0,0.00021409,120]
[406908971,1772270904993,-166.0,0.0002142,120]
[406908972,1772270905019,-166.0,0.0002142,120]
[406908973,1772270905046,-217.59510941,0.00021471,56]
[406908974,1772270905072,-405.0,0.000216,30]
[406908975,1772270905098,-287.0,0.00021667,30]
[406908976,1772270905126,-200.0,0.00021759,120]
[406908977,1772270905151,-200.0,0.00021759,120]
[406908978,1772270905176,-150.0,0.00021838,120]
[406908979,1772270905202,-156.0,0.00021838,120]
[406908980,1772270905227,-323.2140833,0.00021852,63]
[406908981,1772270905252,-250.0,0.00022045,30]
[406908982,1772270905277,-161.0,0.00022045,30]
[406908983,1772270905302,-252.0,0.00022077,120]
[406908984,1772270905328,-278.0,0.00022093,30]
[406908985,1772270905354,-207.0,0.00022277,120]
[406908986,1772270905381,-334.04164818,0.00022359,63]
[406908987,1772270905410,-177.0,0.0002248,120]
[406908988,1772270905443,-166.0,0.00022491,120]
[406908989,1772270905470,-166.0,0.00022491,120]
[406908990,1772270905496,-1000.0,0.0002257,30]
[406908991,1772270905521,-207.0,0.00022619,30]
[406908992,1772270905547,-2866.34643704,0.00023,120]
[406908993,1772270905573,-300.0,0.00023,30]
[406908994,1772270905600,-250.0,0.00023176,30]
[406908995,1772270905625,-250.0,0.00023176,30]
[406908996,1772270905649,-156.0,0.00023176,30]
[406908997,1772270905676,-323.2140833,0.00023365,79]
[406908998,1772270905701,-464.04305454,0.00023682,90]
[406908999,1772270906023,-464.04305454,0.00023682,90]
[406909000,1772270906050,-232.02152727,0.00023682,90]
[406909001,1772270906076,-267.73,0.000237,60]
[406909002,1772270906103,-161.59,0.000237,60]
[406909003,1772270906132,-300.0,0.00023808,30]
[406909004,1772270906157,-300.0,0.00023808,30]
[406909005,1772270906183,-181.0,0.00023808,30]
[406909006,1772270906209,-334.04164818,0.00023999,79]
[406909007,1772270906233,-2157.33249993,0.00024,120]
[406909008,1772270906259,-50094.88908287,0.00024,60]
[406909009,1772270906284,-468.77717894,0.00024,120]
[406909010,1772270906310,-298.0,0.00024,30]
[406909011,1772270906337,-2470.73170401,0.00024108,120]
[406909012,1772270906364,-350.0,0.00024426,30]
[406909013,1772270906389,-350.0,0.00024426,30]
[406909014,1772270906415,-331.0,0.00024426,30]
[406909015,1772270906440,-150.0,0.00024625,120]
[406909016,1772270906465,-203.0,0.00024625,120]
[406909017,1772270906493,-5000.0,0.000248,30]
[406909018,1772270906519,-5000.0,0.000248,30]
[406909019,1772270906544,-5000.0,0.000248,30]
[406909020,1772270906570,-323.2140833,0.00024878,94]
[406909021,1772270906595,-752.9134666,0.00025,120]
[406909022,1772270906620,-3029.06222755,0.00025,30]
[406909023,1772270906645,-1000.0,0.00025,30]
[406909024,1772270906670,-2526.49,0.00025,30]
[406909025,1772270906698,-218.99709187,0.00025426,120]
[406909026,1772270906724,-160.0,0.000255,120]
[406909027,1772270906751,-334.04164818,0.00025639,94]
[406909028,1772270906778,-200.0,0.00025953,120]
[406909029,1772270906805,-315.0,0.00025953,120]
[406909030,1772270906830,-796.800537,0.00025978,30]
[406909031,1772270906857,-1602.52271714,0.00026,30]
[406909032,1772270906883,-164.55719009,0.00026391,110]
[406909033,1772270906909,-323.2140833,0.00026391,110]
[406909034,1772270906935,-238.72338416,0.00026715,120]
[406909035,1772270906961,-217.59510941,0.00027141,110]
[406909036,1772270906985,-2440.87182276,0.0002717,120]
[406909037,1772270907011,-334.04164818,0.00027279,110]
[406909038,1772270907036,-219.40958678,0.00027364,120]
[406909039,1772270907061,-5000.0,0.0002737,120]
[406909040,1772270907087,-2555.91065762,0.00027397,60]
[406909041,1772270907113,-1000.0,0.00027397,120]
[406909042,1772270907141,-2526.49,0.00027551,30]
[406909043,1772270907168,-202.72092054,0.00027682,120]
[406909044,1772270907195,-1000.0,0.0002777,30]
[406909045,1772270907221,-1000.0,0.0002777,30]
[406909046,1772270907247,-1000.0,0.00028,30]
[406909047,1772270907272,-24358.36443413,0.00028,30]
[406909048,1772270907298,-159.63741113,0.00028623,120]
[406909049,1772270907326,-240.55063167,0.00028623,120]
[406909050,1772270907354,-5932.882012,0.00028674,30]
[406909051,1772270907381,-174.730531,0.00028767,60]
[406909052,1772270907408,-234.0,0.00029178,33]
[406909053,1772270907435,-188.25487968,0.00029367,120]
[406909054,1772270907462,-332355.60519086,0.0003,120]
[406909055,1772270907488,-689628.24703223,0.0003,30]
[406909056,1772270907516,-851.43,0.0003,120]
[406909057,1772270907543,-1000.0,0.0003,30]
[406909058,1772270907568,-682.32,0.0003,120]
[406909059,1772270907594,-62549.9558503,0.0003,30]
[406909060,1772270907620,-4815.96,0.0003,120]
[406909061,1772270907646,-604756.15833105,0.0003,120]
[406909062,1772270907671,-480.0,0.0003,30]
[406909063,1772270907698,-11796.23059747,0.0003,30]
[406909064,1772270907724,-18939.63522673,0.0003,30]
[406909065,1772270907749,-1008.92,0.0003,30]
[406909066,1772270907774,-1121.98,0.0003,30]
[406909067,1772270907798,-1000.0,0.00030137,120]
[406909068,1772270907824,-1390.20433151,0.00030137,120]
[406909069,1772270907848,-536.58029227,0.00030137,120]
[406909070,1772270907918,-167.15452891,0.00030137,120]
[406909071,1772270907945,-5266.81890427,0.00030151,120]
[406909072,1772270907972,-186.2194799,0.00030151,120]
[406909073,1772270907998,-52998.52214456,0.00030152,120]
[406909074,1772270908024,-1121.98,0.00030207,30]
[406909075,1772270908050,-205.0,0.00030274,39]
[406909076,1772270908075,-1121.98,0.00030414,30]
[406909077,1772270908103,-1000.0,0.00030547,30]
[406909078,1772270908133,-1000.0,0.00030547,30]
[406909079,1772270908160,-579.0,0.00030547,30]
[406909080,1772270908186,-1121.98,0.00030621,30]
[406909081,1772270908211,-1121.98,0.00030828,30]
[406909082,1772270908237,-1000.0,0.00031,120]
[406909083,1772270908265,-185.85275826,0.00031,120]
[406909084,1772270908290,-293.61709998,0.00031,120]
[406909085,1772270908317,-1025.43282445,0.00031,120]
[406909086,1772270908345,-163.1340075,0.00031,120]
[406909087,1772270908373,-605.55363813,0.00031,120]
[406909088,1772270908399,-214.1834385,0.00031,120]
[406909089,1772270908427,-197.08628681,0.00031,120]
[406909090,1772270908454,-480.20317242,0.00031,120]
[406909091,1772270908482,-274.46119115,0.00031,120]
[406909092,1772270908509,-170.66033827,0.00031,120]
[406909093,1772270908537,-198.95172953,0.00031,120]
[406909094,1772270908563,-203.54591399,0.00031,120]
[406909095,1772270908591,-299.96000002,0.00031,120]
[406909096,1772270908619,-1121.98,0.00031034,30]
[406909097,1772270908649,-1121.98,0.00031241,30]
[406909098,1772270908676,-180.0,0.0003137,46]
[406909099,1772270908703,-4596.23097294,0.00031444,120]
[406909100,1772270908732,-1121.98,0.00031448,30]
[406909101,1772270908759,-1008.92,0.000315,30]
[406909102,1772270908789,-181.4359,0.000316,120]
[406909103,1772270908816,-1121.98,0.00031655,30]
[406909104,1772270908842,-336.0401,0.000318,30]
[406909105,1772270908866,-666.8335,0.000318,30]
[406909106,1772270908895,-1987.1544,0.000318,30]
[406909107,1772270908920,-1121.98,0.00031862,30]
[406909108,1772270908945,-185.85275826,0.000319,120]
[406909109,1772270908971,-293.61709998,0.000319,120]
[406909110,1772270908996,-1025.43282445,0.000319,120]
[406909111,1772270909023,-605.55363813,0.000319,120]
[406909112,1772270909047,-214.1834385,0.000319,120]
[406909113,1772270909072,-197.08628681,0.000319,120]
[406909114,1772270909099,-480.20317242,0.000319,120]
[406909115,1772270909124,-274.46119115,0.000319,120]
[406909116,1772270909150,-198.95172953,0.000319,120]
[406909117,1772270909176,-1000.0,0.00032,30]
[406909118,1772270909201,-338.0,0.00032,30]
[406909119,1772270909225,-291.54996034,0.00032,120]
[406909120,1772270909249,-40733.81983792,0.00032,30]
[406909121,1772270909275,-1121.98,0.00032069,120]
[406909122,1772270909302,-1000.0,0.000322,30]
[406909123,1772270909327,-1000.0,0.000322,30]
[406909124,1772270909351,-1000.0,0.000322,30]
[406909125,1772270909377,-1000.0,0.000322,30]
[406909126,1772270909403,-1121.98,0.00032276,120]
[406909127,1772270909430,-600.0,0.00032454,33]
[406909128,1772270909456,-157.0,0.00032466,53]
[406909129,1772270909482,-1121.98,0.00032483,120]
[406909130,1772270909507,-1000.0,0.000325,30]
[406909131,1772270909534,-1000.0,0.000325,30]
[406909132,1772270909562,-1000.0,0.000325,30]
[406909133,1772270909587,-1121.98,0.0003269,120]
[406909134,1772270909612,-1000.0,0.000328,30]
[406909135,1772270909636,-1000.0,0.000328,30]
[406909136,1772270909660,-1000.0,0.000328,30]
[406909137,1772270909685,-5484.87,0.00032876,120]
[406909138,1772270909711,-1555.75835456,0.00032877,120]
[406909139,1772270909737,-436.89476264,0.00032877,120]
[406909140,1772270909763,-1121.98,0.00032897,120]
[406909141,1772270909788,-185.85275826,0.000329,120]
[406909142,1772270909812,-293.61709998,0.000329,120]
[406909143,1772270909836,-1025.43282445,0.000329,120]
[406909144,1772270909860,-605.55363813,0.000329,120]
[406909145,1772270909883,-197.08628681,0.000329,120]
[406909146,1772270909908,-480.20317242,0.000329,120]
[406909147,1772270909934,-274.46119115,0.000329,120]
[406909148,1772270909959,-198.95172953,0.000329,120]
[406909149,1772270909982,-1008.92,0.00033,120]
[406909150,1772270910006,-650.0,0.00033,120]
[406909151,1772270910031,-1000.0,0.00033,120]
[406909152,1772270910057,-17455.1030046,0.00033,120]
[406909153,1772270910082,-1000.0,0.00033,30]
[406909154,1772270910109,-65598.55819114,0.00033,120]
[406909155,1772270910135,-3672.57289723,0.00033,30]
[406909156,1772270910159,-20000.0,0.00033,120]
[406909157,1772270910185,-1000.0,0.000331,30]
[406909158,1772270910209,-1000.0,0.000331,30]
[406909159,1772270910233,-1000.0,0.000331,30]
[406909160,1772270910258,-1121.98,0.00033103,120]
[406909161,1772270910284,-333.22221725,0.000332,117]
[406909162,1772270910310,-603.2149497,0.00033211,120]
[406909163,1772270910335,-344.86550586,0.00033261,30]
[406909164,1772270910361,-1121.98,0.0003331,120]
[406909165,1772270910386,-1000.0,0.000334,30]
[406909166,1772270910412,-1000.0,0.000334,30]
[406909167,1772270910439,-1000.0,0.000334,30]
[406909168,1772270910466,-1121.98,0.00033517,120]
[406909169,1772270910490,-200.0,0.00033562,61]
[406909170,1772270910517,-1000.0,0.00033602,30]
[406909171,1772270910545,-1000.0,0.00033602,30]
[406909172,1772270910573,-666.0,0.00033602,30]
[406909173,1772270910598,-1000.0,0.000337,30]
[406909174,1772270910739,-1000.0,0.000337,30]
[406909175,1772270910766,-1000.0,0.000337,30]
[406909176,1772270910794,-1121.98,0.00033724,120]
[406909177,1772270910821,-70673.78304862,0.00033788,60]
[406909178,1772270910847,-185.85275826,0.000339,120]
[406909179,1772270910874,-293.61709998,0.000339,120]
[406909180,1772270910901,-1025.43282445,0.000339,120]
[406909181,1772270910927,-605.55363813,0.000339,120]
[406909182,1772270910953,-197.08628681,0.000339,120]
[406909183,1772270910979,-480.20317242,0.000339,120]
[406909184,1772270911005,-274.46119115,0.000339,120]
[406909185,1772270911031,-1121.98,0.00033931,120]
[406909186,1772270911061,-1000.0,0.00034,30]
[406909187,1772270911090,-1000.0,0.00034,30]
[406909188,1772270911114,-1000.0,0.00034,30]
[406909189,1772270911141,-566.62862021,0.00034,30]
[406909190,1772270911168,-1121.98,0.00034138,120]
[406909191,1772270911196,-999.0,0.00034246,120]
[406909192,1772270911222,-1000.0,0.000343,30]
[406909193,1772270911247,-1000.0,0.000343,30]
[406909194,1772270911273,-1000.0,0.000343,30]
[406909195,1772270911298,-1671.466,0.000343,30]
[406909196,1772270911323,-1671.46,0.000343,30]
[406909197,1772270911348,-452.57,0.000343,30]
[406909198,1772270911380,-316.3205,0.000343,30]
[406909199,1772270911407,-1121.98,0.00034345,120]
[406909200,1772270911434,-1008.92,0.000345,120]
[406909201,1772270911461,-1121.98,0.00034552,120]
[406909202,1772270911487,-1000.0,0.000346,30]
[406909203,1772270911513,-1000.0,0.000346,30]
[406909204,1772270911537,-1000.0,0.000346,30]
[406909205,1772270911563,-1002.78557,0.000347,120]
[406909206,1772270911588,-203.06967,0.000347,120]
[406909207,1772270911614,-1121.98,0.00034759,120]
[406909208,1772270911640,-1000.0,0.000349,30]
[406909209,1772270911666,-1000.0,0.000349,30]
[406909210,1772270911691,-1000.0,0.000349,30]
[406909211,1772270911716,-293.61709998,0.000349,120]
[406909212,1772270911742,-1025.43282445,0.000349,120]
[406909213,1772270911767,-197.08628681,0.000349,120]
[406909214,1772270911792,-605.55363813,0.000349,120]
[406909215,1772270911817,-480.20317242,0.000349,120]
[406909216,1772270911843,-274.46119115,0.000349,120]
[406909217,1772270911868,-1121.98,0.00034966,120]
[406909218,1772270911892,-100573.6110596,0.0003499,120]
[406909219,1772270911916,-156.56022396,0.00035,120]
[406909220,1772270911941,-1000.0,0.00035,120]
[406909221,1772270911968,-1000.0,0.00035,30]
[406909222,1772270911991,-284.046923,0.00035,30]
[406909223,1772270912015,-3600.0,0.00035,120]
[406909224,1772270912040,-1121.98,0.00035172,120]
[406909225,1772270912065,-1000.0,0.000352,30]
[406909226,1772270912090,-1000.0,0.000352,30]
[406909227,1772270912118,-212.0,0.00035205,76]
[406909228,1772270912144,-639.65075203,0.00035211,120]
[406909229,1772270912170,-1121.98,0.00035379,120]
[406909230,1772270912195,-1000.0,0.000355,30]
[406909231,1772270912223,-1000.0,0.000355,30]
[406909232,1772270912260,-1121.98,0.00035586,120]
[406909233,1772270912285,-5484.87,0.00035616,120]
[406909234,1772270912310,-151.0,0.00035616,31]
[406909235,1772270912336,-151.0,0.00035616,31]
[406909236,1772270912360,-151.0,0.00035616,31]
[406909237,1772270912385,-151.0,0.00035616,31]
[406909238,1772270912410,-151.0,0.00035616,31]
[406909239,1772270912437,-151.0,0.00035616,31]
[406909240,1772270912463,-151.0,0.00035616,31]
[406909241,1772270912489,-151.0,0.00035616,31]
[406909242,1772270912514,-151.0,0.00035616,31]
[406909243,1772270912539,-193.306054,0.00035616,31]
[406909244,1772270912565,-1121.98,0.00035793,120]
[406909245,1772270912590,-1000.0,0.000358,30]
[406909246,1772270912615,-1000.0,0.000358,30]
[406909247,1772270912641,-1008.92,0.00036,120]
[406909248,1772270912667,-30000.0,0.00036,120]
[406909249,1772270912693,-1000.0,0.000361,30]
[406909250,1772270912718,-1000.0,0.000361,30]
[406909251,1772270912745,-2569391.03364344,0.00036104,30]
[406909252,1772270929931,-333.22221724,0.000332,117]
[406909253,1772270929959,-333.22221724,0.000332,117]
[406909254,1772270929985,-333.22221724,0.000332,117]
[406909255,1772270930010,-333.22221724,0.000332,117]
[406909256,1772270930037,-999.0,0.00034246,120]
[406909257,1772270930065,-4997668.11113104,0.00036104,30]
[406909258,1772270934064,-5000000.0,0.00036104,30]
[406909259,1772270936907,-5027.8,0.00032876,120]
[406909260,1772270936939,-5027.8,0.00035616,120]
[406909261,1772270936965,-4989944.4,0.00036104,30]
[406909263,1772270939883,-5000000.0,0.00036104,30]
[406909264,1772270947916,-151.0,0.00027225,30]
[406909265,1772270947968,-3748764.61956896,0.00036104,30]
[406909266,1772270948001,-15500.0,0.00036104,30]
[406909267,1772270948036,-381.0,0.00036104,30]
[406909268,1772270948069,-1000.0,0.000364,30]
[406909269,1772270948105,-1000.0,0.000364,30]
[406909270,1772270948139,-1013226.1122,0.0003644,30]
[406909271,1772270948178,-1000.0,0.000367,30]
[406909272,1772270948213,-1000.0,0.000367,30]
[406909273,1772270948250,-1002.78557,0.000367,120]
[406909274,1772270948282,-1000.0,0.000369,30]
[406909275,1772270948316,-999.0,0.00036986,120]
[406909276,1772270948352,-1000.0,0.00037,30]
[406909277,1772270948384,-1000.0,0.00037,30]
[406909278,1772270948417,-1000.0,0.00037,120]
[406909279,1772270948450,-1000.0,0.000373,30]
[406909280,1772270948482,-163.0,0.00037397,99]
[406909281,1772270948515,-1000.0,0.000376,30]
[406909282,1772270948547,-301.66,0.000378,60]
[406909283,1772270948578,-24834.00176836,0.0003784,120]
[406909284,1772270948608,-1000.0,0.000379,30]
[406909285,1772270948642,-3083.70666701,0.00037954,30]
[406909286,1772270948672,-58825.14580193,0.00038,120]
[406909287,1772270948706,-338.1248,0.00038,120]
[406909288,1772270948735,-1000.0,0.00038,30]
[406909289,1772270948765,-3000.0,0.00038,120]
[406909290,1772270948796,-802.45,0.00038067,30]
[406909291,1772270948829,-1000.0,0.000382,30]
[406909292,1772270948864,-1200.0,0.00038356,120]
[406909293,1772270948895,-1200.0,0.00038356,120]
[406909294,1772270948926,-1200.0,0.00038356,120]
[406909295,1772270948958,-1200.0,0.00038356,120]
[406909296,1772270948989,-1200.0,0.00038356,120]
[406909297,1772270949041,-1200.0,0.00038356,120]
[406909298,1772270949078,-1200.0,0.00038356,120]
[406909299,1772270949130,-1200.0,0.00038356,120]
[406909300,1772270949171,-1200.0,0.00038356,120]
[406909301,1772270949238,-1200.0,0.00038356,120]
[406909302,1772270949289,-1200.0,0.00038356,120]
[406909303,1772270949339,-1200.0,0.00038356,120]
[406909304,1772270949376,-1200.0,0.00038356,120]
[406909305,1772270949764,-1200.0,0.00038356,120]
[406909306,1772270949805,-1200.0,0.00038356,120]
[406909307,1772270949843,-1200.0,0.00038356,120]
[406909308,1772270949884,-1200.0,0.00038356,120]
[406909309,1772270949922,-1342.66288468,0.00038356,120]
[406909310,1772270949956,-5027.8,0.00038356,120]
[406909311,1772270949989,-151.0,0.00038356,120]
[406909312,1772270950024,-151.0,0.00038356,120]
[406909313,1772270950055,-151.0,0.00038356,120]
[406909314,1772270950091,-151.0,0.00038356,120]
[406909315,1772270950123,-151.0,0.00038356,120]
[406909316,1772270950156,-151.0,0.00038356,120]
[406909317,1772270950193,-151.0,0.00038356,120]
[406909318,1772270950225,-151.0,0.00038356,120]
[406909319,1772270950256,-151.0,0.00038356,120]
[406909320,1772270950287,-151.0,0.00038356,120]
[406909321,1772270950319,-151.0,0.00038356,120]
[406909322,1772270950353,-151.0,0.00038356,120]
[406909323,1772270950387,-260.767508,0.00038356,120]
[406909324,1772270950420,-183.5922,0.00038356,120]
[406909325,1772270950453,-183.5922,0.00038356,120]
[406909326,1772270950486,-183.5922,0.00038356,120]
[406909327,1772270950521,-183.5922,0.00038356,120]
[406909328,1772270950552,-183.5922,0.00038356,120]
[406909329,1772270950587,-183.5922,0.00038356,120]
[406909330,1772270950619,-183.5922,0.00038356,120]
[406909331,1772270950649,-183.5922,0.00038356,120]
[406909332,1772270950680,-183.5922,0.00038356,120]
[406909333,1772270950712,-183.5922,0.00038356,120]
[406909334,1772270950742,-183.5922,0.00038356,120]
[406909335,1772270950774,-183.5922,0.00038356,120]
[406909336,1772270950805,-183.5922,0.00038356,120]
[406909337,1772270950837,-183.5922,0.00038356,120]
[406909338,1772270950873,-183.5922,0.00038356,120]
[406909339,1772270950905,-183.5922,0.00038356,120]
[406909340,1772270950935,-183.5922,0.00038356,120]
[406909341,1772270950966,-183.5922,0.00038356,120]
[406909342,1772270950996,-183.5922,0.00038356,120]
[406909343,1772270951027,-183.592192,0.00038356,120]
[406909344,1772270951056,-242.913189,0.00038356,120]
[406909345,1772270951086,-229.321368,0.00038356,120]
[406909346,1772270951124,-229.321368,0.00038356,120]
[406909347,1772270951153,-170.245687,0.00038356,120]
[406909348,1772270951183,-170.245687,0.00038356,120]
[406909349,1772270951218,-229.321368,0.00038356,120]
[406909350,1772270951248,-170.245687,0.00038356,120]
[406909351,1772270951278,-229.321368,0.00038356,120]
[406909352,1772270951310,-170.245687,0.00038356,120]
[406909353,1772270951341,-229.321368,0.00038356,120]
[406909354,1772270951373,-170.245687,0.00038356,120]
[406909355,1772270951404,-229.321368,0.00038356,120]
[406909356,1772270951437,-170.245687,0.00038356,120]
[406909357,1772270951469,-229.321368,0.00038356,120]
[406909358,1772270951501,-170.245687,0.00038356,120]
[406909359,1772270951534,-229.321368,0.00038356,120]
[406909360,1772270951566,-170.245687,0.00038356,120]
[406909361,1772270951597,-229.321368,0.00038356,120]
[406909362,1772270951632,-170.245687,0.00038356,120]
[406909363,1772270951665,-229.321368,0.00038356,120]
[406909364,1772270951694,-170.245687,0.00038356,120]
[406909365,1772270951725,-261.62732,0.00038356,120]
[406909366,1772270951753,-229.321368,0.00038356,120]
[406909367,1772270951784,-170.245687,0.00038356,120]
[406909368,1772270951813,-261.62732,0.00038356,120]
[406909369,1772270951843,-229.321368,0.00038356,120]
[406909370,1772270951870,-170.245687,0.00038356,120]
[406909371,1772270951900,-261.62732,0.00038356,120]
[406909372,1772270951931,-229.321368,0.00038356,120]
[406909373,1772270951959,-170.245687,0.00038356,120]
[406909374,1772270951987,-261.62732,0.00038356,120]
[406909375,1772270952017,-229.321368,0.00038356,120]
[406909376,1772270952048,-170.245687,0.00038356,120]
[406909377,1772270952078,-261.62732,0.00038356,120]
[406909378,1772270952110,-229.321368,0.00038356,120]
[406909379,1772270952142,-170.245687,0.00038356,120]
[406909380,1772270952174,-261.62732,0.00038356,120]
[406909381,1772270952205,-229.321368,0.00038356,120]
[406909382,1772270952234,-170.245687,0.00038356,120]
[406909383,1772270952265,-261.62732,0.00038356,120]
[406909384,1772270952295,-229.321368,0.00038356,120]
[406909385,1772270952327,-170.245687,0.00038356,120]
[406909386,1772270952358,-261.62732,0.00038356,120]
[406909387,1772270952390,-229.321368,0.00038356,120]
[406909388,1772270952420,-170.245687,0.00038356,120]
[406909389,1772270952451,-261.62732,0.00038356,120]
[406909390,1772270952484,-229.321368,0.00038356,120]
[406909391,1772270952516,-170.245687,0.00038356,120]
[406909392,1772270952548,-261.62732,0.00038356,120]
[406909393,1772270952581,-229.321367,0.00038356,120]
[406909394,1772270952612,-170.245694,0.00038356,120]
[406909395,1772270952641,-261.62732,0.00038356,120]
[406909396,1772270952673,-261.62732,0.00038356,120]
[406909397,1772270952704,-261.62732,0.00038356,120]
[406909398,1772270952735,-261.62732,0.00038356,120]
[406909399,1772270952773,-261.62732,0.00038356,120]
[406909400,1772270952806,-261.62732,0.00038356,120]
[406909401,1772270952836,-261.62732,0.00038356,120]
[406909402,1772270952868,-261.62732,0.00038356,120]
[406909403,1772270952898,-261.62732,0.00038356,120]
[406909404,1772270952929,-261.627313,0.00038356,120]
[406909405,1772270952961,-151.0,0.00038356,120]
[406909406,1772270952991,-151.0,0.00038356,120]
[406909407,1772270953023,-151.0,0.00038356,120]
[406909408,1772270953054,-151.0,0.00038356,120]
[406909409,1772270953286,-151.0,0.00038356,120]
[406909410,1772270953321,-151.0,0.00038356,120]
[406909411,1772270953353,-151.0,0.00038356,120]